[Event "*** Titled Tuesday Blitz"]
[Site "Chess.com"]
[Date "2020.05.19"]
[Round "1"]
[White "Aureliano-Buendia"]
[Black "Jagerrmeisterr"]
[Result "0-1"]
[WhiteElo "2355"]
[BlackElo "2664"]
[TimeControl "180+1"]
[EndTime "12:08:04 PDT"]
[Termination "Jagerrmeisterr won by resignation"]

1. d4 {[%clk 0:03:00.8]} 1... d5 {[%clk 0:02:59.5]} 2. Nf3 {[%clk 0:03:00.6]}
2... c6 {[%clk 0:02:58.8]} 3. c4 {[%clk 0:03:00.4]} 3... e6 {[%clk 0:02:59.3]}
4. Nbd2 {[%clk 0:02:59.5]} 4... f5 {[%clk 0:02:59.7]} 5. g3 {[%clk 0:02:58.5]}
5... Nf6 {[%clk 0:03:00.3]} 6. Bg2 {[%clk 0:02:58.7]} 6... Bd6 {[%clk
0:03:00.9]} 7. b3 {[%clk 0:02:56.6]} 7... Nbd7 {[%clk 0:03:00.4]} 8. Bb2 {[%clk
0:02:55.9]} 8... Qe7 {[%clk 0:03:00.9]} 9. Ne5 {[%clk 0:02:54.3]} 9... O-O
{[%clk 0:03:00.5]} 10. O-O {[%clk 0:02:54.2]} 10... Ne4 {[%clk 0:02:57.5]} 11.
Ndf3 {[%clk 0:02:51]} 11... Ndf6 {[%clk 0:02:52.5]} 12. Nd3 {[%clk 0:02:48]}
12... b6 {[%clk 0:02:49.6]} 13. Nfe5 {[%clk 0:02:46.9]} 13... Bb7 {[%clk
0:02:50.1]} 14. f3 {[%clk 0:02:37.7]} 14... Ng5 {[%clk 0:02:50]} 15. Qd2 {[%clk
0:02:35.3]} 15... Nf7 {[%clk 0:02:45.6]} 16. Rae1 {[%clk 0:02:32.8]} 16... c5
{[%clk 0:02:41.9]} 17. e3 {[%clk 0:02:16.9]} 17... Rfd8 {[%clk 0:02:37.4]} 18.
Qf2 {[%clk 0:01:43.6]} 18... Nh6 {[%clk 0:02:18]} 19. h3 {[%clk 0:01:41.3]}
19... a6 {[%clk 0:02:12.1]} 20. g4 {[%clk 0:01:40.3]} 20... g5 {[%clk
0:01:58.7]} 21. Qg3 {[%clk 0:01:35.2]} 21... Kh8 {[%clk 0:01:52.3]} 22. dxc5
{[%clk 0:01:22.1]} 22... bxc5 {[%clk 0:01:52]} 23. gxf5 {[%clk 0:01:20.5]} 23...
Nxf5 {[%clk 0:01:47.4]} 24. Qxg5 {[%clk 0:01:20]} 24... d4 {[%clk 0:01:47.3]}
25. Ng4 {[%clk 0:01:08.6]} 25... Rf8 {[%clk 0:01:13.8]} 26. exd4 {[%clk
0:01:04.9]} 26... cxd4 {[%clk 0:01:10.2]} 27. Nde5 {[%clk 0:00:29.1]} 27... Rad8
{[%clk 0:01:01.3]} 28. Rf2 {[%clk 0:00:25]} 28... Qc7 {[%clk 0:00:57]} 29. Rfe2
{[%clk 0:00:20.6]} 29... Be7 {[%clk 0:00:53.4]} 30. Qf4 {[%clk 0:00:19.4]} 30...
Nh5 {[%clk 0:00:51.9]} 31. Qd2 {[%clk 0:00:18.3]} 31... Nhg3 {[%clk 0:00:48.8]}
32. Rf2 {[%clk 0:00:17.9]} 32... Bh4 {[%clk 0:00:40.4]} 33. Nd3 {[%clk
0:00:16.8]} 33... Qg7 {[%clk 0:00:34.8]} 34. Rxe6 {[%clk 0:00:16]} 34... h5
{[%clk 0:00:29.5]} 35. Nge5 {[%clk 0:00:15]} 35... Bf6 {[%clk 0:00:25.4]} 36.
Nf4 {[%clk 0:00:13.3]} 36... Bc8 {[%clk 0:00:19.4]} 37. Neg6+ {[%clk 0:00:12.2]}
37... Kg8 {[%clk 0:00:18.8]} 38. Nxf8 {[%clk 0:00:11.5]} 38... Qxf8 {[%clk
0:00:17.4]} 39. Re4 {[%clk 0:00:09.5]} 39... Qh6 {[%clk 0:00:16.9]} 40. Nd5
{[%clk 0:00:08.8]} 40... Qxd2 {[%clk 0:00:16.4]} 41. Rxd2 {[%clk 0:00:09.2]}
41... Bg7 {[%clk 0:00:13.8]} 42. f4 {[%clk 0:00:09.7]} 42... Nxe4 {[%clk
0:00:13.5]} 43. Bxe4 {[%clk 0:00:10.2]} 43... Ng3 {[%clk 0:00:14.4]} 44. Bd3
{[%clk 0:00:09.8]} 44... Bxh3 {[%clk 0:00:14.4]} 45. Kh2 {[%clk 0:00:09.8]}
45... Nf1+ {[%clk 0:00:13.2]} 46. Kxh3 {[%clk 0:00:09.4]} 46... Nxd2 {[%clk
0:00:13.2]} 47. f5 {[%clk 0:00:09.3]} 47... Kf7 {[%clk 0:00:11.8]} 48. f6 {[%clk
0:00:07.9]} 48... Bxf6 {[%clk 0:00:11.9]} 49. c5 {[%clk 0:00:07.6]} 49... Rxd5
{[%clk 0:00:11.3]} 50. Bc4 {[%clk 0:00:08.1]} 50... Nxc4 {[%clk 0:00:11.6]} 51.
bxc4 {[%clk 0:00:08]} 51... Rxc5 {[%clk 0:00:12.1]} 0-1

[Event "*** Titled Tuesday Blitz"]
[Site "Chess.com"]
[Date "2020.05.19"]
[Round "1"]
[White "wonderfultime"]
[Black "Karacsonyi_Gellert"]
[Result "1-0"]
[WhiteElo "3006"]
[BlackElo "2459"]
[TimeControl "180+1"]
[EndTime "12:08:06 PDT"]
[Termination "wonderfultime won on time"]

1. d4 {[%clk 0:02:41.7]} 1... Nf6 {[%clk 0:02:59.1]} 2. Nf3 {[%clk 0:02:41.6]}
2... d5 {[%clk 0:02:59]} 3. Bf4 {[%clk 0:02:40.5]} 3... c5 {[%clk 0:02:59.2]} 4.
c3 {[%clk 0:02:40.6]} 4... Nc6 {[%clk 0:02:59.7]} 5. e3 {[%clk 0:02:40.1]} 5...
Qb6 {[%clk 0:02:59.7]} 6. Qc2 {[%clk 0:02:40]} 6... e6 {[%clk 0:02:57.2]} 7.
Nbd2 {[%clk 0:02:39.7]} 7... Be7 {[%clk 0:02:57.2]} 8. Bd3 {[%clk 0:02:39.6]}
8... O-O {[%clk 0:02:56.9]} 9. O-O {[%clk 0:02:38]} 9... h6 {[%clk 0:02:57]} 10.
h3 {[%clk 0:02:35.8]} 10... Bd7 {[%clk 0:02:56.3]} 11. Rac1 {[%clk 0:02:35.1]}
11... Rac8 {[%clk 0:02:55.6]} 12. Qb1 {[%clk 0:02:35]} 12... Qd8 {[%clk
0:02:50.2]} 13. Rfd1 {[%clk 0:02:31.6]} 13... c4 {[%clk 0:02:47.6]} 14. Bc2
{[%clk 0:02:30.9]} 14... b5 {[%clk 0:02:48]} 15. a3 {[%clk 0:02:30.9]} 15... Be8
{[%clk 0:02:46.6]} 16. e4 {[%clk 0:02:26.1]} 16... dxe4 {[%clk 0:02:36.8]} 17.
Nxe4 {[%clk 0:02:27]} 17... Nxe4 {[%clk 0:02:36.7]} 18. Bxe4 {[%clk 0:02:27.5]}
18... Bd6 {[%clk 0:02:37]} 19. Bxd6 {[%clk 0:02:12]} 19... Qxd6 {[%clk
0:02:37.9]} 20. d5 {[%clk 0:02:12.9]} 20... Ne7 {[%clk 0:02:14.2]} 21. dxe6
{[%clk 0:01:53.6]} 21... Qxe6 {[%clk 0:02:15.1]} 22. Re1 {[%clk 0:01:53.9]}
22... Qf6 {[%clk 0:02:06.8]} 23. Rcd1 {[%clk 0:01:50.4]} 23... Bc6 {[%clk
0:02:04]} 24. Nd4 {[%clk 0:01:42.4]} 24... a6 {[%clk 0:01:45.4]} 25. Re3 {[%clk
0:01:32.4]} 25... Bxe4 {[%clk 0:01:41]} 26. Qxe4 {[%clk 0:01:32.1]} 26... Ng6
{[%clk 0:01:34.3]} 27. Rde1 {[%clk 0:01:10]} 27... Rcd8 {[%clk 0:01:21.7]} 28.
g3 {[%clk 0:01:05.8]} 28... Qd6 {[%clk 0:01:14.7]} 29. h4 {[%clk 0:00:59.8]}
29... Qd5 {[%clk 0:00:58.2]} 30. Qg4 {[%clk 0:00:57.3]} 30... h5 {[%clk
0:00:56.9]} 31. Qe2 {[%clk 0:00:57.2]} 31... Rd6 {[%clk 0:00:41.4]} 32. Re8
{[%clk 0:00:47.4]} 32... Rd8 {[%clk 0:00:40.7]} 33. Re4 {[%clk 0:00:42.9]} 33...
Rd6 {[%clk 0:00:39.8]} 34. Qf3 {[%clk 0:00:32.7]} 34... Rdd8 {[%clk 0:00:39.1]}
35. Nf5 {[%clk 0:00:30.9]} 35... Qd7 {[%clk 0:00:19.6]} 36. Qxh5 {[%clk
0:00:27.1]} 36... Rfe8 {[%clk 0:00:20]} 37. Qg5 {[%clk 0:00:15.6]} 37... Rxe4
{[%clk 0:00:14.6]} 38. Rxe4 {[%clk 0:00:16.5]} 38... Re8 {[%clk 0:00:05.5]} 39.
Rxe8+ {[%clk 0:00:14.3]} 39... Qxe8 {[%clk 0:00:06.4]} 40. h5 {[%clk 0:00:15.2]}
40... Qe1+ {[%clk 0:00:06.4]} 41. Kg2 {[%clk 0:00:15]} 41... Qe4+ {[%clk
0:00:06.4]} 42. Kh2 {[%clk 0:00:11.4]} 42... Qf3 {[%clk 0:00:02.8]} 43. Qd8+
{[%clk 0:00:11]} 43... Nf8 {[%clk 0:00:01.7]} 44. Ne7+ {[%clk 0:00:09.5]} 44...
Kh7 {[%clk 0:00:02]} 45. Qxf8 {[%clk 0:00:06.8]} 45... Qxf2+ {[%clk 0:00:02]}
46. Kh3 {[%clk 0:00:07.3]} 46... Qf1+ {[%clk 0:00:02.8]} 47. Kg4 {[%clk
0:00:07.8]} 47... Qe2+ {[%clk 0:00:03.3]} 48. Kf4 {[%clk 0:00:08.2]} 48... Qf2+
{[%clk 0:00:03.8]} 49. Ke5 {[%clk 0:00:08.6]} 49... Qc5+ {[%clk 0:00:03.1]} 50.
Ke4 {[%clk 0:00:08.4]} 50... Qxh5 {[%clk 0:00:02.7]} 51. Qg8+ {[%clk 0:00:08.3]}
51... Kh6 {[%clk 0:00:03.3]} 52. Qh8+ {[%clk 0:00:08.9]} 52... Kg5 {[%clk
0:00:04.2]} 53. Qxg7+ {[%clk 0:00:09.3]} 1-0

[Event "*** Titled Tuesday Blitz"]
[Site "Chess.com"]
[Date "2020.05.19"]
[Round "1"]
[White "Bubi6"]
[Black "atwalcb"]
[Result "1/2-1/2"]
[WhiteElo "2615"]
[BlackElo "2334"]
[TimeControl "180+1"]
[EndTime "12:08:08 PDT"]
[Termination "Game drawn by repetition"]

1. e4 {[%clk 0:03:00.9]} 1... d6 {[%clk 0:03:00.3]} 2. d4 {[%clk 0:02:59.8]}
2... Nf6 {[%clk 0:03:00.9]} 3. Nc3 {[%clk 0:02:59.7]} 3... Nbd7 {[%clk
0:03:01.5]} 4. f4 {[%clk 0:02:56.9]} 4... e5 {[%clk 0:03:02.1]} 5. Nf3 {[%clk
0:02:57.3]} 5... exd4 {[%clk 0:03:02.2]} 6. Nxd4 {[%clk 0:02:57.8]} 6... g6
{[%clk 0:03:01.8]} 7. Be2 {[%clk 0:02:57.3]} 7... Bg7 {[%clk 0:03:02.4]} 8. O-O
{[%clk 0:02:57.7]} 8... O-O {[%clk 0:03:03]} 9. Kh1 {[%clk 0:02:58.2]} 9... Re8
{[%clk 0:03:03.2]} 10. Bf3 {[%clk 0:02:58.1]} 10... Nc5 {[%clk 0:02:56]} 11. Re1
{[%clk 0:02:56.9]} 11... h5 {[%clk 0:02:54]} 12. h3 {[%clk 0:02:54.9]} 12... a6
{[%clk 0:02:51.3]} 13. a4 {[%clk 0:02:50.8]} 13... c6 {[%clk 0:02:50.4]} 14. a5
{[%clk 0:02:25.3]} 14... Qc7 {[%clk 0:02:49.2]} 15. b3 {[%clk 0:02:25.1]} 15...
Ne6 {[%clk 0:02:40.2]} 16. Nxe6 {[%clk 0:02:22.3]} 16... Bxe6 {[%clk 0:02:41.1]}
17. Bb2 {[%clk 0:02:20.9]} 17... Rad8 {[%clk 0:02:39.8]} 18. Qd2 {[%clk
0:02:10.6]} 18... d5 {[%clk 0:02:37.4]} 19. e5 {[%clk 0:01:58.2]} 19... Nd7
{[%clk 0:02:36.3]} 20. Qf2 {[%clk 0:01:50.5]} 20... Bf8 {[%clk 0:02:18.3]} 21.
Ne2 {[%clk 0:01:44.9]} 21... Bb4 {[%clk 0:02:15.3]} 22. Bc3 {[%clk 0:01:39.6]}
22... Bxc3 {[%clk 0:02:11.2]} 23. Nxc3 {[%clk 0:01:40.5]} 23... Bf5 {[%clk
0:02:06.6]} 24. g4 {[%clk 0:01:36.7]} 24... hxg4 {[%clk 0:02:03.4]} 25. hxg4
{[%clk 0:01:37.6]} 25... Be6 {[%clk 0:02:02.7]} 26. Kg2 {[%clk 0:01:36.5]} 26...
Kg7 {[%clk 0:02:01.1]} 27. Ne2 {[%clk 0:01:32.5]} 27... Rh8 {[%clk 0:01:58.5]}
28. Ng3 {[%clk 0:01:31.7]} 28... Nf8 {[%clk 0:01:31.9]} 29. Rh1 {[%clk
0:01:27.2]} 29... Rxh1 {[%clk 0:01:16]} 30. Rxh1 {[%clk 0:01:28.1]} 30... f6
{[%clk 0:01:08.9]} 31. f5 {[%clk 0:01:27]} 31... Bf7 {[%clk 0:01:01.2]} 32. e6
{[%clk 0:01:26]} 32... Bxe6 {[%clk 0:00:59.5]} 33. fxe6 {[%clk 0:01:25.7]} 33...
Nxe6 {[%clk 0:01:00.4]} 34. Ne2 {[%clk 0:01:25.5]} 34... g5 {[%clk 0:00:57]} 35.
b4 {[%clk 0:01:19.9]} 35... Nf4+ {[%clk 0:00:54.8]} 36. Nxf4 {[%clk 0:01:18.8]}
36... Qxf4 {[%clk 0:00:55.7]} 37. c3 {[%clk 0:01:13.2]} 37... Re8 {[%clk
0:00:55]} 38. Qd4 {[%clk 0:01:13]} 38... Qxd4 {[%clk 0:00:47.5]} 39. cxd4 {[%clk
0:01:11.8]} 39... Re3 {[%clk 0:00:48.2]} 40. Rb1 {[%clk 0:00:59]} 40... Rd3
{[%clk 0:00:48.1]} 41. Kf2 {[%clk 0:00:58.9]} 41... Rxd4 {[%clk 0:00:45.9]} 42.
Ke3 {[%clk 0:00:59.3]} 42... Rc4 {[%clk 0:00:44.6]} 43. Be2 {[%clk 0:00:58.9]}
43... Re4+ {[%clk 0:00:44.5]} 44. Kd3 {[%clk 0:00:58.9]} 44... Rf4 {[%clk
0:00:44.8]} 45. Ke3 {[%clk 0:00:54.2]} 45... Re4+ {[%clk 0:00:43.5]} 46. Kf3
{[%clk 0:00:54.2]} 46... Rf4+ {[%clk 0:00:44]} 47. Kg3 {[%clk 0:00:53.4]} 47...
Re4 {[%clk 0:00:44.4]} 48. Bf3 {[%clk 0:00:53.9]} 48... Rd4 {[%clk 0:00:44.6]}
49. Rb2 {[%clk 0:00:54]} 49... Rd3 {[%clk 0:00:44.4]} 50. Re2 {[%clk 0:00:52.2]}
50... Kf7 {[%clk 0:00:43.1]} 51. Rh2 {[%clk 0:00:51.4]} 51... Kg7 {[%clk
0:00:43]} 52. Rb2 {[%clk 0:00:51]} 52... Rd4 {[%clk 0:00:42.6]} 53. Kf2 {[%clk
0:00:50.4]} 53... Rf4 {[%clk 0:00:38.8]} 54. Ke3 {[%clk 0:00:49.8]} 54... Rc4
{[%clk 0:00:39.1]} 55. Be2 {[%clk 0:00:50.2]} 55... Re4+ {[%clk 0:00:39.3]} 56.
Kf3 {[%clk 0:00:50.2]} 56... Rf4+ {[%clk 0:00:39.7]} 57. Kg3 {[%clk 0:00:50.5]}
57... Re4 {[%clk 0:00:40.1]} 58. Kf2 {[%clk 0:00:47.4]} 58... Rf4+ {[%clk
0:00:39.5]} 59. Ke1 {[%clk 0:00:47.9]} 59... Rd4 {[%clk 0:00:37.7]} 60. Rb3
{[%clk 0:00:46.6]} 60... Kf7 {[%clk 0:00:37]} 61. Kf2 {[%clk 0:00:46.5]} 61...
Re4 {[%clk 0:00:34.1]} 62. Kf3 {[%clk 0:00:43.5]} 62... Kg7 {[%clk 0:00:33.6]}
63. Bd3 {[%clk 0:00:42.3]} 63... Rf4+ {[%clk 0:00:33]} 64. Kg3 {[%clk
0:00:42.1]} 64... Rd4 {[%clk 0:00:31.4]} 65. Bf1 {[%clk 0:00:41.3]} 65... Rf4
{[%clk 0:00:27.9]} 66. Bg2 {[%clk 0:00:41.6]} 66... Kf7 {[%clk 0:00:25.8]} 67.
Bf3 {[%clk 0:00:37.3]} 67... Rd4 {[%clk 0:00:25.2]} 68. Rb1 {[%clk 0:00:37]}
68... Kg7 {[%clk 0:00:24]} 69. Kf2 {[%clk 0:00:36.8]} 69... Kf7 {[%clk
0:00:23.1]} 70. Be2 {[%clk 0:00:35.2]} 70... Kg7 {[%clk 0:00:20.9]} 71. Ke3
{[%clk 0:00:34.8]} 71... Re4+ {[%clk 0:00:20.3]} 1/2-1/2

[Event "*** Titled Tuesday Blitz"]
[Site "Chess.com"]
[Date "2020.05.19"]
[Round "1"]
[White "ENEASZ"]
[Black "pawnwonder"]
[Result "1-0"]
[WhiteElo "2533"]
[BlackElo "2209"]
[TimeControl "180+1"]
[EndTime "12:08:11 PDT"]
[Termination "ENEASZ won by resignation"]

1. e4 {[%clk 0:03:00.9]} 1... c5 {[%clk 0:01:20.7]} 2. c3 {[%clk 0:02:47.3]}
2... Nf6 {[%clk 0:01:20.2]} 3. e5 {[%clk 0:02:47.6]} 3... Nd5 {[%clk 0:01:20]}
4. d4 {[%clk 0:02:48.5]} 4... cxd4 {[%clk 0:01:20.9]} 5. cxd4 {[%clk 0:02:49.4]}
5... d6 {[%clk 0:01:20.5]} 6. Bc4 {[%clk 0:02:47.2]} 6... Nb6 {[%clk 0:01:19.2]}
7. Bb5+ {[%clk 0:02:47.4]} 7... Bd7 {[%clk 0:01:14.7]} 8. e6 {[%clk 0:02:46.6]}
8... fxe6 {[%clk 0:01:05.3]} 9. Bd3 {[%clk 0:02:45]} 9... g6 {[%clk 0:00:55.1]}
10. h4 {[%clk 0:02:44.3]} 10... Nc6 {[%clk 0:00:12.5]} 11. h5 {[%clk 0:02:44.1]}
11... Nb4 {[%clk 0:00:12.8]} 12. hxg6 {[%clk 0:02:42.2]} 12... Nxd3+ {[%clk
0:00:12.3]} 13. Qxd3 {[%clk 0:02:42.7]} 13... Bg7 {[%clk 0:00:11.6]} 14. gxh7
{[%clk 0:02:42]} 14... Qc7 {[%clk 0:00:11.4]} 15. Qg6+ {[%clk 0:02:41.1]} 15...
Kf8 {[%clk 0:00:10.6]} 16. Nc3 {[%clk 0:02:41.8]} 16... Qc4 {[%clk 0:00:07.7]}
17. Bh6 {[%clk 0:02:40.6]} 17... Qxd4 {[%clk 0:00:07.6]} 18. Nf3 {[%clk
0:02:26.6]} 18... Qf6 {[%clk 0:00:07.4]} 19. Bxg7+ {[%clk 0:02:27.2]} 19... Qxg7
{[%clk 0:00:07.3]} 20. Qe4 {[%clk 0:02:28.1]} 20... Rc8 {[%clk 0:00:03.7]} 21.
Rh4 {[%clk 0:01:49.1]} 21... Rc4 {[%clk 0:00:03.9]} 22. Rf4+ {[%clk 0:01:37.5]}
22... Ke8 {[%clk 0:00:03.6]} 23. Qe3 {[%clk 0:01:37.8]} 23... Rxf4 {[%clk
0:00:03.2]} 24. Qxf4 {[%clk 0:01:38.7]} 24... Rxh7 {[%clk 0:00:03.7]} 25. O-O-O
{[%clk 0:01:38.6]} 25... Qh6 {[%clk 0:00:04.2]} 26. Ng5 {[%clk 0:01:37.4]} 26...
Rg7 {[%clk 0:00:04.2]} 27. Nh3 {[%clk 0:01:35.4]} 27... Qxf4+ {[%clk 0:00:04]}
28. Nxf4 {[%clk 0:01:36.3]} 28... Rf7 {[%clk 0:00:04.7]} 29. g3 {[%clk
0:01:34.5]} 29... e5 {[%clk 0:00:04.9]} 30. Nd3 {[%clk 0:01:34.7]} 30... Bf5
{[%clk 0:00:04.2]} 31. Nb4 {[%clk 0:01:27.3]} 31... Bg4 {[%clk 0:00:04.5]} 32.
Rd2 {[%clk 0:01:22.8]} 32... Nc4 {[%clk 0:00:03.8]} 33. Rc2 {[%clk 0:01:22]}
33... Bf5 {[%clk 0:00:04.2]} 34. Re2 {[%clk 0:01:20.9]} 34... Bg4 {[%clk
0:00:03.6]} 35. Re4 {[%clk 0:01:20.9]} 35... Rxf2 {[%clk 0:00:02.4]} 36. Rxg4
{[%clk 0:01:12]} 36... Nxb2 {[%clk 0:00:02.6]} 37. Rg7 {[%clk 0:01:05.8]} 37...
Kd7 {[%clk 0:00:03]} 38. Ncd5 {[%clk 0:01:00]} 38... a5 {[%clk 0:00:02.8]} 39.
Rxe7+ {[%clk 0:00:56.3]} 39... Kc8 {[%clk 0:00:03.4]} 40. Rc7+ {[%clk
0:00:41.7]} 40... Kd8 {[%clk 0:00:03]} 41. Rc2 {[%clk 0:00:42.6]} 41... Nd3+
{[%clk 0:00:02.9]} 42. Nxd3 {[%clk 0:00:42.1]} 42... Rf1+ {[%clk 0:00:03.1]} 43.
Kb2 {[%clk 0:00:41.6]} 43... Rg1 {[%clk 0:00:04]} 44. Nf2 {[%clk 0:00:20.9]}
44... Rxg3 {[%clk 0:00:03.9]} 45. a4 {[%clk 0:00:21.1]} 45... Rg4 {[%clk
0:00:03.5]} 46. Nc3 {[%clk 0:00:20.3]} 46... Rb4+ {[%clk 0:00:03.1]} 47. Ka3
{[%clk 0:00:20.6]} 47... Kd7 {[%clk 0:00:03]} 48. Rd2 {[%clk 0:00:20.7]} 48...
Ke6 {[%clk 0:00:02.8]} 49. Nfe4 {[%clk 0:00:16.9]} 49... Rd4 {[%clk 0:00:02.3]}
50. Rf2 {[%clk 0:00:15.8]} 50... d5 {[%clk 0:00:01.5]} 51. Nc5+ {[%clk
0:00:15.4]} 51... Kd6 {[%clk 0:00:01.6]} 52. Nxb7+ {[%clk 0:00:16.3]} 52... Kc6
{[%clk 0:00:02]} 53. Nxa5+ {[%clk 0:00:17.2]} 53... Kb6 {[%clk 0:00:02.9]} 54.
Nb3 {[%clk 0:00:17.7]} 54... Re4 {[%clk 0:00:03]} 55. Rf6+ {[%clk 0:00:18.5]}
55... Kc7 {[%clk 0:00:02.5]} 56. Nxd5+ {[%clk 0:00:19.4]} 56... Kd8 {[%clk
0:00:02.5]} 57. Nc5 {[%clk 0:00:18.2]} 1-0

[Event "*** Titled Tuesday Blitz"]
[Site "Chess.com"]
[Date "2020.05.19"]
[Round "1"]
[White "CMS13"]
[Black "jonaszmb"]
[Result "0-1"]
[WhiteElo "2188"]
[BlackElo "2519"]
[TimeControl "180+1"]
[EndTime "12:08:11 PDT"]
[Termination "jonaszmb won by resignation"]

1. e4 {[%clk 0:03:00.9]} 1... c5 {[%clk 0:03:00]} 2. Nc3 {[%clk 0:03:00.2]} 2...
a6 {[%clk 0:02:59.8]} 3. f4 {[%clk 0:02:59.5]} 3... b5 {[%clk 0:02:59.8]} 4. Nf3
{[%clk 0:02:59.5]} 4... Bb7 {[%clk 0:03:00.2]} 5. d4 {[%clk 0:02:59.6]} 5...
cxd4 {[%clk 0:03:00.3]} 6. Qxd4 {[%clk 0:02:59.6]} 6... Nc6 {[%clk 0:02:59.4]}
7. Qf2 {[%clk 0:02:59.5]} 7... e6 {[%clk 0:02:55.6]} 8. Bd3 {[%clk 0:02:58.9]}
8... Rc8 {[%clk 0:02:51.1]} 9. Be3 {[%clk 0:02:52.6]} 9... Nf6 {[%clk
0:02:45.7]} 10. h3 {[%clk 0:02:52.1]} 10... Bb4 {[%clk 0:02:34.4]} 11. O-O
{[%clk 0:02:50.9]} 11... Bxc3 {[%clk 0:02:34.4]} 12. bxc3 {[%clk 0:02:51.8]}
12... O-O {[%clk 0:02:29.7]} 13. Bb6 {[%clk 0:02:42.6]} 13... Qe7 {[%clk
0:02:14.2]} 14. e5 {[%clk 0:02:28.3]} 14... Nd5 {[%clk 0:01:37.8]} 15. Bxh7+
{[%clk 0:02:12.2]} 15... Kxh7 {[%clk 0:01:31.4]} 16. Ng5+ {[%clk 0:02:12.2]}
16... Kg8 {[%clk 0:01:18.2]} 17. Qh4 {[%clk 0:02:09.6]} 17... Qxg5 {[%clk
0:01:18]} 18. fxg5 {[%clk 0:02:08.2]} 18... Nxb6 {[%clk 0:01:18]} 19. Rae1
{[%clk 0:01:50.4]} 19... Nc4 {[%clk 0:01:15]} 20. Qg3 {[%clk 0:01:35.7]} 20...
Ne7 {[%clk 0:01:11.7]} 21. h4 {[%clk 0:01:28.8]} 21... Nf5 {[%clk 0:01:11.7]}
22. Qh3 {[%clk 0:01:24.4]} 22... Nd2 {[%clk 0:01:02.6]} 23. Rxf5 {[%clk
0:01:21.1]} 23... exf5 {[%clk 0:01:03.5]} 24. Qxf5 {[%clk 0:01:21]} 24... Bc6
{[%clk 0:00:30.7]} 25. h5 {[%clk 0:01:18.8]} 25... Be4 {[%clk 0:00:11.4]} 26.
Rxe4 {[%clk 0:01:08.4]} 26... Nxe4 {[%clk 0:00:12.3]} 27. Qxe4 {[%clk
0:01:08.9]} 27... Rc4 {[%clk 0:00:11.4]} 28. Qf5 {[%clk 0:01:03.9]} 28... Rc6
{[%clk 0:00:06.2]} 29. Qxd7 {[%clk 0:01:00.8]} 29... Rxc3 {[%clk 0:00:05.9]} 30.
Qf5 {[%clk 0:00:59.4]} 30... Rc6 {[%clk 0:00:05.1]} 31. Kh2 {[%clk 0:00:55.1]}
31... Re8 {[%clk 0:00:04.3]} 32. Qd7 {[%clk 0:00:47.6]} 32... Rce6 {[%clk
0:00:03.8]} 33. g6 {[%clk 0:00:44]} 33... fxg6 {[%clk 0:00:04.7]} 34. hxg6
{[%clk 0:00:44.1]} 34... Rxe5 {[%clk 0:00:05.3]} 35. Qf7+ {[%clk 0:00:43.5]}
35... Kh8 {[%clk 0:00:05.8]} 36. Qf3 {[%clk 0:00:41]} 36... Kg8 {[%clk
0:00:06.1]} 37. Qb3+ {[%clk 0:00:39.4]} 37... R8e6 {[%clk 0:00:03.1]} 38. a4
{[%clk 0:00:35.6]} 38... Kf8 {[%clk 0:00:01.4]} 39. Qf3+ {[%clk 0:00:34.5]}
39... Ke7 {[%clk 0:00:01.5]} 40. Qf7+ {[%clk 0:00:34.2]} 40... Kd6 {[%clk
0:00:01.7]} 41. Qxg7 {[%clk 0:00:33.2]} 41... Rh5+ {[%clk 0:00:02]} 42. Kg3
{[%clk 0:00:32.7]} 42... Rg5+ {[%clk 0:00:01.9]} 43. Kf2 {[%clk 0:00:32.7]}
43... Rexg6 {[%clk 0:00:02.8]} 44. Qf8+ {[%clk 0:00:31.4]} 44... Kd5 {[%clk
0:00:03.3]} 45. Qd8+ {[%clk 0:00:31.4]} 45... Kc4 {[%clk 0:00:03.5]} 46. Qc7+
{[%clk 0:00:30.7]} 46... Kb4 {[%clk 0:00:03.8]} 47. axb5 {[%clk 0:00:27.7]}
47... Rxg2+ {[%clk 0:00:03.5]} 48. Kf3 {[%clk 0:00:27.1]} 48... axb5 {[%clk
0:00:02.6]} 49. c3+ {[%clk 0:00:25.3]} 49... Kb3 {[%clk 0:00:02.6]} 50. Qc5
{[%clk 0:00:19.3]} 50... R6g5 {[%clk 0:00:02.9]} 51. Qd4 {[%clk 0:00:16.5]}
51... R2g3+ {[%clk 0:00:02.3]} 52. Ke2 {[%clk 0:00:16.1]} 52... Rg2+ {[%clk
0:00:02.7]} 53. Kd3 {[%clk 0:00:15.3]} 53... R5g3+ {[%clk 0:00:02.5]} 54. Ke4
{[%clk 0:00:13.9]} 54... Rg4+ {[%clk 0:00:02.9]} 55. Kd5 {[%clk 0:00:14.7]}
55... Rxd4+ {[%clk 0:00:03.7]} 56. cxd4 {[%clk 0:00:15.3]} 56... Rd2 {[%clk
0:00:03.9]} 57. Kc5 {[%clk 0:00:15.6]} 57... b4 {[%clk 0:00:04.8]} 58. d5 {[%clk
0:00:15.5]} 58... Kc3 {[%clk 0:00:05.7]} 59. d6 {[%clk 0:00:15.9]} 59... b3
{[%clk 0:00:06.6]} 60. d7 {[%clk 0:00:15.7]} 60... b2 {[%clk 0:00:07.5]} 61. Kc6
{[%clk 0:00:16]} 61... b1=Q {[%clk 0:00:07.5]} 62. Kc7 {[%clk 0:00:16.4]} 62...
Rxd7+ {[%clk 0:00:07.8]} 63. Kxd7 {[%clk 0:00:14.9]} 63... Qd3+ {[%clk
0:00:08.7]} 64. Ke6 {[%clk 0:00:15.1]} 64... Kd4 {[%clk 0:00:09.6]} 0-1